[Event "*** Titled Tuesday Blitz"]
[Site "Chess.com"]
[Date "2020.10.27"]
[Round "1"]
[White "ferdipy"]
[Black "AndrewMaco"]
[Result "1/2-1/2"]
[WhiteElo "2319"]
[BlackElo "2650"]
[TimeControl "180+1"]
[EndTime "10:10:23 PDT"]
[Termination "Game drawn - insufficient material"]

1. e4 {[%clk 0:03:00.9]} 1... c6 {[%clk 0:02:54.2]} 2. d4 {[%clk 0:03:00.9]}
2... d5 {[%clk 0:02:52.7]} 3. exd5 {[%clk 0:03:00.4]} 3... cxd5 {[%clk
0:02:53.6]} 4. Bd3 {[%clk 0:03:00.7]} 4... Nc6 {[%clk 0:02:51]} 5. c3 {[%clk
0:03:01.2]} 5... Nf6 {[%clk 0:02:51.3]} 6. Bf4 {[%clk 0:03:01.6]} 6... Bg4
{[%clk 0:02:51.4]} 7. Qb3 {[%clk 0:03:02.2]} 7... Qd7 {[%clk 0:02:51.7]} 8. Nd2
{[%clk 0:03:02.7]} 8... e6 {[%clk 0:02:52.1]} 9. Ngf3 {[%clk 0:03:03.3]} 9...
Bxf3 {[%clk 0:02:52.6]} 10. Nxf3 {[%clk 0:03:03.4]} 10... Bd6 {[%clk 0:02:53.3]}
11. Bxd6 {[%clk 0:03:04]} 11... Qxd6 {[%clk 0:02:54.2]} 12. O-O {[%clk
0:03:04.7]} 12... O-O {[%clk 0:02:54.2]} 13. Rfe1 {[%clk 0:03:05.3]} 13... Qc7
{[%clk 0:02:53.8]} 14. Ne5 {[%clk 0:03:04]} 14... Nxe5 {[%clk 0:02:51.5]} 15.
dxe5 {[%clk 0:03:04.9]} 15... Ng4 {[%clk 0:02:52]} 16. Qb4 {[%clk 0:02:45.5]}
16... Nxe5 {[%clk 0:02:47.8]} 17. Qf4 {[%clk 0:02:45.7]} 17... f6 {[%clk
0:02:45.1]} 18. Bc2 {[%clk 0:02:27.9]} 18... Rac8 {[%clk 0:02:42.1]} 19. Qh4
{[%clk 0:02:26]} 19... g6 {[%clk 0:02:34.6]} 20. f4 {[%clk 0:02:22.7]} 20...
Qb6+ {[%clk 0:02:34.3]} 21. Qf2 {[%clk 0:02:09.2]} 21... Qxf2+ {[%clk
0:02:22.1]} 22. Kxf2 {[%clk 0:02:10.1]} 22... Nc4 {[%clk 0:02:21.8]} 23. Rxe6
{[%clk 0:01:58]} 23... Nxb2 {[%clk 0:02:21.8]} 24. Rb1 {[%clk 0:01:55.9]} 24...
Nc4 {[%clk 0:02:14.2]} 25. Rxb7 {[%clk 0:01:56.4]} 25... Rf7 {[%clk 0:02:14.4]}
26. Rxf7 {[%clk 0:01:44]} 26... Kxf7 {[%clk 0:02:15.3]} 27. f5 {[%clk
0:01:44.1]} 27... Nb6 {[%clk 0:02:06.9]} 28. g4 {[%clk 0:01:39]} 28... Rxc3
{[%clk 0:02:04.7]} 29. Bb3 {[%clk 0:01:38.3]} 29... gxf5 {[%clk 0:02:00.9]} 30.
gxf5 {[%clk 0:01:39.2]} 30... Rh3 {[%clk 0:02:00.9]} 31. Kg2 {[%clk 0:01:37.1]}
31... Rh5 {[%clk 0:02:01.1]} 32. Bc2 {[%clk 0:01:33.8]} 32... Rh4 {[%clk
0:01:59.9]} 33. Kg3 {[%clk 0:01:29.5]} 33... Rd4 {[%clk 0:01:51.7]} 34. Re3
{[%clk 0:01:16.4]} 34... h5 {[%clk 0:01:50.9]} 35. Ra3 {[%clk 0:01:14.3]} 35...
h4+ {[%clk 0:01:43.2]} 36. Kf3 {[%clk 0:01:10.9]} 36... Nc4 {[%clk 0:01:35.2]}
37. Rxa7+ {[%clk 0:01:08.3]} 37... Kf8 {[%clk 0:01:35.6]} 38. Bb3 {[%clk
0:01:07]} 38... Ne5+ {[%clk 0:01:30]} 39. Ke2 {[%clk 0:01:07.5]} 39... Re4+
{[%clk 0:01:17.2]} 40. Kd1 {[%clk 0:01:01.1]} 40... Rf4 {[%clk 0:01:16.7]} 41.
Rh7 {[%clk 0:00:48.2]} 41... Kg8 {[%clk 0:01:15.2]} 42. Rh5 {[%clk 0:00:46.7]}
42... Kg7 {[%clk 0:01:14.2]} 43. Kc2 {[%clk 0:00:40.7]} 43... d4 {[%clk
0:01:13.6]} 44. a4 {[%clk 0:00:34.6]} 44... Rf2+ {[%clk 0:01:00.3]} 45. Kd1
{[%clk 0:00:34.6]} 45... Nf3 {[%clk 0:00:55.9]} 46. Bd5 {[%clk 0:00:27.2]} 46...
Ne5 {[%clk 0:00:26.7]} 47. Rxh4 {[%clk 0:00:25.8]} 47... d3 {[%clk 0:00:27.3]}
48. a5 {[%clk 0:00:20.4]} 48... Rf1+ {[%clk 0:00:27.6]} 49. Kd2 {[%clk
0:00:18.3]} 49... Ra1 {[%clk 0:00:28.2]} 50. Be4 {[%clk 0:00:14.4]} 50... Ra2+
{[%clk 0:00:19.7]} 51. Ke3 {[%clk 0:00:14.2]} 51... d2 {[%clk 0:00:17.7]} 52.
Ke2 {[%clk 0:00:03.7]} 52... Nc4 {[%clk 0:00:13.4]} 53. Bd3 {[%clk 0:00:02.5]}
53... Nxa5 {[%clk 0:00:12.7]} 54. Rg4+ {[%clk 0:00:03.4]} 54... Kf7 {[%clk
0:00:11.8]} 55. Kd1 {[%clk 0:00:04.3]} 55... Ke7 {[%clk 0:00:11.4]} 56. Rg2
{[%clk 0:00:05.2]} 56... Nc6 {[%clk 0:00:10.6]} 57. Rxd2 {[%clk 0:00:05.6]}
57... Ra1+ {[%clk 0:00:10.7]} 58. Ke2 {[%clk 0:00:06.1]} 58... Ne5 {[%clk
0:00:11.3]} 59. Be4 {[%clk 0:00:06.3]} 59... Ra3 {[%clk 0:00:10.5]} 60. Rc2
{[%clk 0:00:03.7]} 60... Rh3 {[%clk 0:00:06.9]} 61. Rc7+ {[%clk 0:00:04.2]}
61... Kd6 {[%clk 0:00:07.4]} 62. Rc8 {[%clk 0:00:03.2]} 62... Rxh2+ {[%clk
0:00:07.7]} 63. Ke3 {[%clk 0:00:04.1]} 63... Rh3+ {[%clk 0:00:08.1]} 64. Kf4
{[%clk 0:00:04.6]} 64... Rh4+ {[%clk 0:00:08.6]} 65. Ke3 {[%clk 0:00:04.7]}
65... Ke7 {[%clk 0:00:09]} 66. Rc7+ {[%clk 0:00:04.3]} 66... Kf8 {[%clk
0:00:09.4]} 67. Rc8+ {[%clk 0:00:04.7]} 67... Kg7 {[%clk 0:00:10.1]} 68. Rc7+
{[%clk 0:00:05.3]} 68... Kh6 {[%clk 0:00:10.8]} 69. Rc8 {[%clk 0:00:05.2]} 69...
Kg5 {[%clk 0:00:11.4]} 70. Kd4 {[%clk 0:00:05.4]} 70... Rh2 {[%clk 0:00:09.8]}
71. Rg8+ {[%clk 0:00:05.9]} 71... Kh4 {[%clk 0:00:09.7]} 72. Rh8+ {[%clk
0:00:06.4]} 72... Kg3 {[%clk 0:00:10.2]} 73. Rxh2 {[%clk 0:00:07.3]} 73... Kxh2
{[%clk 0:00:11.1]} 74. Kd5 {[%clk 0:00:08.2]} 74... Kg3 {[%clk 0:00:11.6]} 75.
Ke6 {[%clk 0:00:09.1]} 75... Ng4 {[%clk 0:00:10.3]} 76. Bb1 {[%clk 0:00:07.9]}
76... Kf4 {[%clk 0:00:10.3]} 77. Bc2 {[%clk 0:00:08.4]} 77... Kg5 {[%clk
0:00:10.2]} 78. Bd1 {[%clk 0:00:08.3]} 78... Ne5 {[%clk 0:00:10.3]} 79. Bc2
{[%clk 0:00:08.8]} 79... Nc4 {[%clk 0:00:10.3]} 80. Bb3 {[%clk 0:00:08.2]} 80...
Ne3 {[%clk 0:00:10.7]} 81. Ba2 {[%clk 0:00:02.5]} 81... Nxf5 {[%clk 0:00:11]}
82. Bb1 {[%clk 0:00:03.4]} 82... Ne3 {[%clk 0:00:11.6]} 83. Kd6 {[%clk
0:00:03.4]} 83... Kf4 {[%clk 0:00:11.4]} 84. Kc5 {[%clk 0:00:03.4]} 84... Ke5
{[%clk 0:00:11.3]} 85. Kb4 {[%clk 0:00:03.6]} 85... Kd4 {[%clk 0:00:11.7]} 86.
Kb3 {[%clk 0:00:03.8]} 86... Nd5 {[%clk 0:00:10.3]} 87. Bh7 {[%clk 0:00:03.5]}
87... Ne7 {[%clk 0:00:10.2]} 88. Kc2 {[%clk 0:00:04.4]} 88... Ke3 {[%clk
0:00:10.4]} 89. Kd1 {[%clk 0:00:04.8]} 89... Kf4 {[%clk 0:00:10.8]} 90. Ke1
{[%clk 0:00:05.7]} 90... Kg5 {[%clk 0:00:10.9]} 91. Kf1 {[%clk 0:00:06.2]} 91...
Ng6 {[%clk 0:00:11.3]} 92. Bg8 {[%clk 0:00:06.3]} 92... f5 {[%clk 0:00:11.7]}
93. Bd5 {[%clk 0:00:06.7]} 93... f4 {[%clk 0:00:12.3]} 94. Ba8 {[%clk
0:00:07.6]} 94... Ne5 {[%clk 0:00:12.7]} 95. Kf2 {[%clk 0:00:08.5]} 95... Kh4
{[%clk 0:00:13.3]} 96. Bb7 {[%clk 0:00:08.9]} 96... Kg4 {[%clk 0:00:14.2]} 97.
Ba8 {[%clk 0:00:09.6]} 97... Nd3+ {[%clk 0:00:14.6]} 98. Kf1 {[%clk 0:00:08.8]}
98... Kg3 {[%clk 0:00:14.8]} 99. Bb7 {[%clk 0:00:09.3]} 99... Ne5 {[%clk
0:00:15]} 100. Ba8 {[%clk 0:00:09.6]} 100... Nf3 {[%clk 0:00:15]} 101. Bb7
{[%clk 0:00:09]} 101... Nh2+ {[%clk 0:00:15.2]} 102. Kg1 {[%clk 0:00:09.6]}
102... Ng4 {[%clk 0:00:15.9]} 103. Kf1 {[%clk 0:00:09.9]} 103... Ne3+ {[%clk
0:00:12.4]} 104. Kg1 {[%clk 0:00:09.1]} 104... Nc4 {[%clk 0:00:11.1]} 105. Kf1
{[%clk 0:00:08.8]} 105... Nd6 {[%clk 0:00:10.7]} 106. Bd5 {[%clk 0:00:09.5]}
106... Nf5 {[%clk 0:00:10]} 107. Ba8 {[%clk 0:00:09.6]} 107... Ne7 {[%clk
0:00:09.9]} 108. Kg1 {[%clk 0:00:09.4]} 108... Nc8 {[%clk 0:00:10.4]} 109. Kf1
{[%clk 0:00:09.4]} 109... Nb6 {[%clk 0:00:10.9]} 110. Bc6 {[%clk 0:00:10.1]}
110... Nc4 {[%clk 0:00:11.2]} 111. Ba8 {[%clk 0:00:10.1]} 111... Ne5 {[%clk
0:00:11.3]} 112. Bd5 {[%clk 0:00:10.2]} 112... Ng4 {[%clk 0:00:11.1]} 113. Ba8
{[%clk 0:00:10.2]} 113... Ne3+ {[%clk 0:00:10.6]} 114. Kg1 {[%clk 0:00:10.7]}
114... f3 {[%clk 0:00:11.2]} 115. Bxf3 {[%clk 0:00:09.1]} 1/2-1/2

[Event "*** Titled Tuesday Blitz"]
[Site "Chess.com"]
[Date "2020.10.27"]
[Round "2"]
[White "GM_Levan_Pantsulaia"]
[Black "IMDT02"]
[Result "1-0"]
[WhiteElo "2864"]
[BlackElo "2572"]
[TimeControl "180+1"]
[EndTime "10:12:17 PDT"]
[Termination "GM_Levan_Pantsulaia won by resignation"]

1. Nf3 {[%clk 0:03:00.9]} 1... Nf6 {[%clk 0:02:59.9]} 2. g3 {[%clk 0:03:01]}
2... c5 {[%clk 0:03:00.1]} 3. Bg2 {[%clk 0:02:59.4]} 3... Nc6 {[%clk 0:03:00.1]}
4. O-O {[%clk 0:02:59.7]} 4... g6 {[%clk 0:03:00.1]} 5. c4 {[%clk 0:02:59]} 5...
Bg7 {[%clk 0:03:00.2]} 6. Nc3 {[%clk 0:02:59.5]} 6... O-O {[%clk 0:03:00.3]} 7.
d4 {[%clk 0:02:59]} 7... cxd4 {[%clk 0:03:01.2]} 8. Nxd4 {[%clk 0:02:59.6]} 8...
Nxd4 {[%clk 0:02:58.9]} 9. Qxd4 {[%clk 0:02:59.1]} 9... d6 {[%clk 0:02:59.4]}
10. b3 {[%clk 0:02:39.5]} 10... Ne4 {[%clk 0:02:51.1]} 11. Qxe4 {[%clk
0:02:39.4]} 11... Bxc3 {[%clk 0:02:50.8]} 12. Bh6 {[%clk 0:02:39.9]} 12... Bg7
{[%clk 0:02:41.3]} 13. Bxg7 {[%clk 0:02:38.9]} 13... Kxg7 {[%clk 0:02:42.2]} 14.
Rfd1 {[%clk 0:02:34.7]} 14... Qb6 {[%clk 0:02:38.3]} 15. Qxe7 {[%clk 0:02:32.2]}
1-0

[Event "*** Titled Tuesday Blitz"]
[Site "Chess.com"]
[Date "2020.10.27"]
[Round "2"]
[White "reniite"]
[Black "ChessWarrior7197"]
[Result "0-1"]
[WhiteElo "1931"]
[BlackElo "2974"]
[TimeControl "180+1"]
[EndTime "10:13:19 PDT"]
[Termination "ChessWarrior7197 won by resignation"]

1. e4 {[%clk 0:03:00.9]} 1... c6 {[%clk 0:02:59.7]} 2. d4 {[%clk 0:03:00.4]}
2... d5 {[%clk 0:03:00.6]} 3. Nc3 {[%clk 0:03:00.9]} 3... dxe4 {[%clk
0:03:00.5]} 4. Nxe4 {[%clk 0:03:01.8]} 4... Nf6 {[%clk 0:03:01.4]} 5. Nxf6+
{[%clk 0:03:02]} 5... exf6 {[%clk 0:03:02.3]} 6. c3 {[%clk 0:03:02.7]} 6... Bd6
{[%clk 0:03:02.8]} 7. Qc2 {[%clk 0:03:02.4]} 7... O-O {[%clk 0:03:03]} 8. Bd3
{[%clk 0:03:03.1]} 8... Re8+ {[%clk 0:03:02.6]} 9. Ne2 {[%clk 0:03:03.6]} 9...
h5 {[%clk 0:03:03.2]} 10. O-O {[%clk 0:03:00.6]} 10... Nd7 {[%clk 0:03:03.7]}
11. h3 {[%clk 0:03:01]} 11... Nf8 {[%clk 0:03:03.7]} 12. Nf4 {[%clk 0:03:01.4]}
12... h4 {[%clk 0:03:01]} 13. Bd2 {[%clk 0:03:00.1]} 13... Bc7 {[%clk
0:03:01.5]} 14. Rae1 {[%clk 0:02:59.3]} 14... Rxe1 {[%clk 0:03:01.3]} 15. Rxe1
{[%clk 0:02:59.2]} 15... Qd6 {[%clk 0:03:02.2]} 16. Bf5 {[%clk 0:02:20.1]} 16...
g5 {[%clk 0:02:58.3]} 17. Ne2 {[%clk 0:02:03.3]} 17... Qh2+ {[%clk 0:02:50.1]}
18. Kf1 {[%clk 0:02:03.5]} 18... Qh1+ {[%clk 0:02:51]} 19. Ng1 {[%clk
0:02:03.3]} 19... Bh2 {[%clk 0:02:51.9]} 20. Ke2 {[%clk 0:01:52.1]} 20... Bxg1
{[%clk 0:02:50.9]} 21. Bxc8 {[%clk 0:01:45]} 21... Rxc8 {[%clk 0:02:51.8]} 22.
Qf5 {[%clk 0:01:45.5]} 22... Re8+ {[%clk 0:02:51.1]} 23. Kd1 {[%clk 0:01:46.1]}
23... Rxe1+ {[%clk 0:02:48.2]} 24. Bxe1 {[%clk 0:01:47]} 24... Qxg2 {[%clk
0:02:48.6]} 25. Qxf6 {[%clk 0:01:46.8]} 25... Ne6 {[%clk 0:02:43.5]} 0-1

[Event "*** Titled Tuesday Blitz"]
[Site "Chess.com"]
[Date "2020.10.27"]
[Round "2"]
[White "coco_crc"]
[Black "witcher8"]
[Result "0-1"]
[WhiteElo "2179"]
[BlackElo "2437"]
[TimeControl "180+1"]
[EndTime "10:13:49 PDT"]
[Termination "witcher8 won by checkmate"]

1. e4 {[%clk 0:03:00.9]} 1... c6 {[%clk 0:02:59.8]} 2. Nf3 {[%clk 0:03:00.9]}
2... d5 {[%clk 0:03:00.7]} 3. Nc3 {[%clk 0:03:01.8]} 3... Bg4 {[%clk 0:03:00.1]}
4. h3 {[%clk 0:03:01.8]} 4... Bh5 {[%clk 0:03:00]} 5. exd5 {[%clk 0:03:00.5]}
5... cxd5 {[%clk 0:02:59.8]} 6. g4 {[%clk 0:03:01.2]} 6... Bg6 {[%clk
0:02:59.6]} 7. Bb5+ {[%clk 0:03:02.1]} 7... Nc6 {[%clk 0:03:00.1]} 8. Ne5 {[%clk
0:03:02.6]} 8... Rc8 {[%clk 0:03:00.7]} 9. h4 {[%clk 0:03:01.7]} 9... f6 {[%clk
0:02:56.4]} 10. Nxg6 {[%clk 0:02:56.7]} 10... hxg6 {[%clk 0:02:57.3]} 11. d4
{[%clk 0:02:55.2]} 11... e6 {[%clk 0:02:45.3]} 12. Qd3 {[%clk 0:02:53.1]} 12...
Kf7 {[%clk 0:02:39.2]} 13. h5 {[%clk 0:02:53.2]} 13... gxh5 {[%clk 0:02:37.6]}
14. gxh5 {[%clk 0:02:54.1]} 14... Nge7 {[%clk 0:02:34.9]} 15. Bf4 {[%clk
0:02:54.6]} 15... Qa5 {[%clk 0:02:32.4]} 16. O-O-O {[%clk 0:02:53.5]} 16... Nb4
{[%clk 0:02:07.7]} 17. Qe2 {[%clk 0:02:38.7]} 17... Rxc3 {[%clk 0:01:49.5]} 18.
bxc3 {[%clk 0:02:36.6]} 18... Nxa2+ {[%clk 0:01:43.9]} 19. Kb2 {[%clk
0:02:23.2]} 19... Nxc3 {[%clk 0:01:42.7]} 20. Qd2 {[%clk 0:02:19.6]} 20... Qb4+
{[%clk 0:01:32.7]} 21. Ka1 {[%clk 0:02:15.9]} 21... Qa3# {[%clk 0:01:32.7]} 0-1

[Event "*** Titled Tuesday Blitz"]
[Site "Chess.com"]
[Date "2020.10.27"]
[Round "2"]
[White "garicradomir"]
[Black "Lion-Al-Messi"]
[Result "1-0"]
[WhiteElo "2315"]
[BlackElo "2513"]
[TimeControl "180+1"]
[EndTime "10:13:52 PDT"]
[Termination "garicradomir won by checkmate"]

1. e4 {[%clk 0:03:00.9]} 1... e6 {[%clk 0:01:34.5]} 2. d4 {[%clk 0:02:56.9]}
2... d5 {[%clk 0:01:34.7]} 3. Nc3 {[%clk 0:02:57.6]} 3... Nf6 {[%clk 0:01:31.1]}
4. Bg5 {[%clk 0:02:56.9]} 4... dxe4 {[%clk 0:01:31]} 5. Nxe4 {[%clk 0:02:56.8]}
5... Be7 {[%clk 0:01:31.5]} 6. Bxf6 {[%clk 0:02:57.5]} 6... gxf6 {[%clk
0:01:32.4]} 7. Nf3 {[%clk 0:02:57.9]} 7... f5 {[%clk 0:01:33.1]} 8. Nc3 {[%clk
0:02:58.5]} 8... a6 {[%clk 0:01:33]} 9. g3 {[%clk 0:02:59.2]} 9... b5 {[%clk
0:01:33.2]} 10. Bg2 {[%clk 0:03:00]} 10... Bb7 {[%clk 0:01:33.8]} 11. O-O {[%clk
0:03:00.4]} 11... b4 {[%clk 0:01:34]} 12. Ne2 {[%clk 0:02:54.7]} 12... O-O
{[%clk 0:01:34.2]} 13. Nf4 {[%clk 0:02:54.5]} 13... Nd7 {[%clk 0:01:34.5]} 14.
Re1 {[%clk 0:02:52.2]} 14... Nf6 {[%clk 0:01:34.7]} 15. Ne5 {[%clk 0:02:52.1]}
15... Bxg2 {[%clk 0:01:34.2]} 16. Kxg2 {[%clk 0:02:51.9]} 16... Nd5 {[%clk
0:01:32.6]} 17. Nh5 {[%clk 0:02:50.2]} 17... f6 {[%clk 0:01:28.8]} 18. Nc6
{[%clk 0:02:50.1]} 18... Qd6 {[%clk 0:01:29]} 19. Nxe7+ {[%clk 0:02:49.9]} 19...
Nxe7 {[%clk 0:01:27.1]} 20. Qe2 {[%clk 0:02:49.4]} 20... Kf7 {[%clk 0:01:26.2]}
21. Rad1 {[%clk 0:02:49.2]} 21... Ng6 {[%clk 0:01:25.5]} 22. c4 {[%clk
0:02:46.3]} 22... Rae8 {[%clk 0:01:24.3]} 23. Rd3 {[%clk 0:02:43.8]} 23... Rg8
{[%clk 0:01:22.9]} 24. Re3 {[%clk 0:02:43.8]} 24... e5 {[%clk 0:01:22.6]} 25. c5
{[%clk 0:02:40.4]} 25... Qxd4 {[%clk 0:01:22.2]} 26. Qxa6 {[%clk 0:02:38.1]}
26... Qxc5 {[%clk 0:01:19.4]} 27. Qxf6# {[%clk 0:02:37.3]} 1-0

[Event "*** Titled Tuesday Blitz"]
[Site "Chess.com"]
[Date "2020.10.27"]
[Round "2"]
[White "Danny_Billiards"]
[Black "GigaQuparadze"]
[Result "0-1"]
[WhiteElo "2542"]
[BlackElo "2834"]
[TimeControl "180+1"]
[EndTime "10:14:02 PDT"]
[Termination "GigaQuparadze won by resignation"]

1. d4 {[%clk 0:03:00.9]} 1... Nf6 {[%clk 0:02:59.3]} 2. c4 {[%clk 0:03:00.9]}
2... e6 {[%clk 0:02:59]} 3. Nc3 {[%clk 0:03:01]} 3... Bb4 {[%clk 0:02:58.3]} 4.
Qc2 {[%clk 0:03:01.1]} 4... Nc6 {[%clk 0:02:55.4]} 5. e3 {[%clk 0:03:00.4]} 5...
O-O {[%clk 0:02:54.6]} 6. Bd2 {[%clk 0:02:59.8]} 6... Re8 {[%clk 0:02:51.8]} 7.
a3 {[%clk 0:02:59.8]} 7... Bf8 {[%clk 0:02:51.1]} 8. Nf3 {[%clk 0:02:57.8]} 8...
b6 {[%clk 0:02:49.2]} 9. Bd3 {[%clk 0:02:50.6]} 9... Bb7 {[%clk 0:02:49.2]} 10.
O-O {[%clk 0:02:50.8]} 10... d6 {[%clk 0:02:43.1]} 11. Rad1 {[%clk 0:02:40.8]}
11... Ne7 {[%clk 0:02:42.8]} 12. e4 {[%clk 0:02:38.7]} 12... Ng6 {[%clk
0:02:42.3]} 13. d5 {[%clk 0:02:29]} 13... e5 {[%clk 0:02:41]} 14. b4 {[%clk
0:02:28.4]} 14... Nf4 {[%clk 0:02:39.6]} 15. Be3 {[%clk 0:02:17.1]} 15... Bc8
{[%clk 0:02:38.1]} 16. c5 {[%clk 0:02:12.6]} 16... Bg4 {[%clk 0:02:37.3]} 17.
Be2 {[%clk 0:01:52.9]} 17... N6h5 {[%clk 0:02:29.9]} 18. cxd6 {[%clk 0:01:42.9]}
18... cxd6 {[%clk 0:02:28.4]} 19. Nb5 {[%clk 0:01:42]} 19... Rc8 {[%clk
0:02:24.6]} 20. Qd2 {[%clk 0:01:41.9]} 20... Qd7 {[%clk 0:02:23.5]} 21. a4
{[%clk 0:01:35.3]} 21... a6 {[%clk 0:02:20.8]} 22. Nc3 {[%clk 0:01:22.9]} 22...
Rxc3 {[%clk 0:02:19.2]} 0-1

[Event "*** Titled Tuesday Blitz"]
[Site "Chess.com"]
[Date "2020.10.27"]
[Round "2"]
[White "TimofeevAr"]
[Black "Thee-Chessboy"]
[Result "1-0"]
[WhiteElo "2776"]
[BlackElo "2513"]
[TimeControl "180+1"]
[EndTime "10:14:15 PDT"]
[Termination "TimofeevAr won by resignation"]

1. c4 {[%clk 0:03:00.9]} 1... Nf6 {[%clk 0:02:59.4]} 2. Nc3 {[%clk 0:02:59.7]}
2... g6 {[%clk 0:02:57.5]} 3. g3 {[%clk 0:02:57.1]} 3... Bg7 {[%clk 0:02:57.2]}
4. Bg2 {[%clk 0:02:57.5]} 4... O-O {[%clk 0:02:57.5]} 5. e3 {[%clk 0:02:57.6]}
5... d6 {[%clk 0:02:55.5]} 6. Nge2 {[%clk 0:02:57.5]} 6... Nbd7 {[%clk
0:02:54.5]} 7. O-O {[%clk 0:02:56.9]} 7... c6 {[%clk 0:02:54.6]} 8. b3 {[%clk
0:02:54]} 8... e5 {[%clk 0:02:54]} 9. d3 {[%clk 0:02:51.3]} 9... Re8 {[%clk
0:02:53.8]} 10. Ba3 {[%clk 0:02:49.8]} 10... Qc7 {[%clk 0:02:48.3]} 11. Rc1
{[%clk 0:02:49]} 11... a5 {[%clk 0:02:44]} 12. h3 {[%clk 0:02:48.2]} 12... Bf8
{[%clk 0:02:31]} 13. Qd2 {[%clk 0:02:44.5]} 13... Nc5 {[%clk 0:02:28.8]} 14. Bb2
{[%clk 0:02:40.4]} 14... Bf5 {[%clk 0:02:27.9]} 15. e4 {[%clk 0:02:36.9]} 15...
Bc8 {[%clk 0:02:25.9]} 16. f4 {[%clk 0:02:33.5]} 16... Bh6 {[%clk 0:02:25.4]}
17. Rcd1 {[%clk 0:02:26]} 17... Nh5 {[%clk 0:02:18.2]} 18. Qe1 {[%clk
0:02:25.3]} 18... Ne6 {[%clk 0:02:08.7]} 19. Bc1 {[%clk 0:02:20.5]} 19... Qb6+
{[%clk 0:02:00.4]} 20. Kh1 {[%clk 0:02:18.2]} 20... Nd4 {[%clk 0:01:55.2]} 21.
Nxd4 {[%clk 0:01:59.4]} 21... exd4 {[%clk 0:01:51]} 22. Na4 {[%clk 0:01:59.1]}
1-0

[Event "*** Titled Tuesday Blitz"]
[Site "Chess.com"]
[Date "2020.10.27"]
[Round "2"]
[White "Th3_Hound"]
[Black "Kobalia"]
[Result "0-1"]
[WhiteElo "2504"]
[BlackElo "2758"]
[TimeControl "180+1"]
[EndTime "10:14:19 PDT"]
[Termination "Kobalia won by resignation"]

1. e4 {[%clk 0:03:00.9]} 1... c5 {[%clk 0:02:57.8]} 2. Nf3 {[%clk 0:03:00.9]}
2... e6 {[%clk 0:02:57.7]} 3. d4 {[%clk 0:03:00.7]} 3... cxd4 {[%clk 0:02:57.9]}
4. Nxd4 {[%clk 0:03:01.6]} 4... Nc6 {[%clk 0:02:58.5]} 5. Nc3 {[%clk 0:02:59.6]}
5... a6 {[%clk 0:02:58.8]} 6. Be3 {[%clk 0:02:58.2]} 6... Nf6 {[%clk 0:02:57.9]}
7. Bd3 {[%clk 0:02:40.7]} 7... Qc7 {[%clk 0:02:52]} 8. O-O {[%clk 0:02:33.5]}
8... Bd6 {[%clk 0:02:48.9]} 9. h3 {[%clk 0:02:29.2]} 9... Bf4 {[%clk 0:02:48.3]}
10. Qe2 {[%clk 0:02:27.5]} 10... Bxe3 {[%clk 0:02:46.6]} 11. Qxe3 {[%clk
0:02:28.4]} 11... Qb6 {[%clk 0:02:43.7]} 12. Nxc6 {[%clk 0:02:18.7]} 12... Qxe3
{[%clk 0:02:43.3]} 13. fxe3 {[%clk 0:02:19.6]} 13... dxc6 {[%clk 0:02:41.4]} 14.
e5 {[%clk 0:02:20]} 14... Nd7 {[%clk 0:02:39.5]} 15. Ne4 {[%clk 0:02:18]} 15...
Nxe5 {[%clk 0:02:38.4]} 16. Nd6+ {[%clk 0:02:18.3]} 16... Ke7 {[%clk 0:02:37.2]}
17. Nxc8+ {[%clk 0:02:17.7]} 17... Raxc8 {[%clk 0:02:36.6]} 18. Be2 {[%clk
0:02:17]} 18... Rcd8 {[%clk 0:02:35.3]} 19. Rad1 {[%clk 0:02:17.4]} 19... Rd5
{[%clk 0:02:33.1]} 20. Rxd5 {[%clk 0:02:13.9]} 20... cxd5 {[%clk 0:02:30.9]} 21.
Rf4 {[%clk 0:02:09.6]} 21... Rc8 {[%clk 0:02:28.5]} 22. Rb4 {[%clk 0:02:06.1]}
22... b5 {[%clk 0:02:26]} 23. c3 {[%clk 0:02:05.6]} 23... Nc6 {[%clk 0:02:24.7]}
24. Rb3 {[%clk 0:02:03.9]} 24... Rb8 {[%clk 0:02:10.4]} 25. Kf2 {[%clk
0:01:53.9]} 25... Kd6 {[%clk 0:02:09.9]} 26. Ra3 {[%clk 0:01:42.8]} 26... a5
{[%clk 0:02:09.4]} 27. b4 {[%clk 0:01:40.4]} 27... a4 {[%clk 0:02:07]} 0-1

[Event "*** Titled Tuesday Blitz"]
[Site "Chess.com"]
[Date "2020.10.27"]
[Round "2"]
[White "ChronicUnhappiness"]
[Black "Gabix_94"]
[Result "0-1"]
[WhiteElo "2363"]
[BlackElo "2790"]
[TimeControl "180+1"]
[EndTime "10:14:38 PDT"]
[Termination "Gabix_94 won by resignation"]

1. c4 {[%clk 0:03:00.9]} 1... Nf6 {[%clk 0:02:59.9]} 2. Nf3 {[%clk 0:02:59.8]}
2... g6 {[%clk 0:02:59.8]} 3. g3 {[%clk 0:02:59.5]} 3... Bg7 {[%clk 0:03:00.2]}
4. Bg2 {[%clk 0:02:53.1]} 4... O-O {[%clk 0:03:00.1]} 5. O-O {[%clk 0:02:53.1]}
5... d6 {[%clk 0:03:00.3]} 6. Nc3 {[%clk 0:02:52.7]} 6... Nbd7 {[%clk
0:03:00.5]} 7. b3 {[%clk 0:02:52.6]} 7... e5 {[%clk 0:03:00.2]} 8. Bb2 {[%clk
0:02:52.8]} 8... Re8 {[%clk 0:02:56.4]} 9. d4 {[%clk 0:02:48.9]} 9... e4 {[%clk
0:02:51.1]} 10. Ng5 {[%clk 0:02:48.4]} 10... e3 {[%clk 0:02:51.3]} 11. f4 {[%clk
0:02:10.4]} 11... Ng4 {[%clk 0:02:42.5]} 12. Qc2 {[%clk 0:01:40.1]} 12... Bxd4
{[%clk 0:02:35.7]} 13. Nd5 {[%clk 0:01:39.6]} 13... Bxb2 {[%clk 0:02:29]} 14.
Qxb2 {[%clk 0:01:39.5]} 14... c6 {[%clk 0:02:29.6]} 15. Nc3 {[%clk 0:01:37.7]}
15... Qe7 {[%clk 0:02:27.4]} 16. Rad1 {[%clk 0:01:36.7]} 16... h6 {[%clk
0:02:21.9]} 17. Nh3 {[%clk 0:01:36.3]} 17... Ndf6 {[%clk 0:02:20.1]} 18. Rd4
{[%clk 0:01:34.1]} 18... Bf5 {[%clk 0:02:17.2]} 19. Rfd1 {[%clk 0:01:32.9]}
19... Rad8 {[%clk 0:02:17.5]} 20. Qa3 {[%clk 0:01:16.4]} 20... Nf2 {[%clk
0:02:14.9]} 21. Nxf2 {[%clk 0:01:10.5]} 21... exf2+ {[%clk 0:02:15.8]} 22. Kh1
{[%clk 0:01:03.4]} 22... Qe3 {[%clk 0:02:10.7]} 23. Rxd6 {[%clk 0:01:00]} 23...
Rxd6 {[%clk 0:02:08.8]} 24. Qxd6 {[%clk 0:00:57.3]} 24... Qxc3 {[%clk
0:02:09.1]} 0-1